bitfinex/quotes_ETHUSD_20240731
["timestamp","ask_amount","ask_price","bid_price","bid_amount"]
[1722411626199,1.8908369,3328.1,3327.8,0.66115856]
[1722411626563,1.8908369,3328.2,3327.8,0.66115856]
[1722411626754,1.8908369,3328.2,3327.7,3.61158559]
[1722411627182,1.8908369,3328.2,3327.8,3.00497]
[1722411627583,1.8908369,3328.2,3327.9,3.00487]
[1722411627798,3.0043,3328.6,3327.9,3.00487]
[1722411628092,1.89082418,3328.3,3327.9,3.00487]
[1722411629594,2.3908,3328.7,3328.1,3.00466]
[1722411629595,1.89082418,3328.4,3328.1,3.00466]
[1722411630493,1.89082418,3328.5,3328.1,3.00466]
[1722411631195,1.89057873,3328.5,3328.1,3.00466]
[1722411634181,1.89057873,3328.5,3328.3,3.00452]
[1722411634400,3.004,3328.9,3328.3,3.00452]
[1722411634566,1.89032476,3328.6,3328.3,3.00452]
[1722411634751,5.20937889,3328.9,3328.3,3.00452]
[1722411634752,1.89032476,3328.7,3328.3,3.00452]
[1722411634956,3.004,3328.9,3328.1,3.06475019]
[1722411634957,1.89032476,3328.6,3328.1,3.06475019]
[1722411635201,1.89032476,3328.6,3328.2,3.00462]
[1722411635406,1.89032476,3328.6,3328.3,3.00451]
[1722411636010,1.89032476,3328.6,3328.1,3.90836658]
[1722411636160,1.89032476,3328.6,3328.2,3.00462]
[1722411637720,3.004,3328.9,3328.2,3.00462]
[1722411638005,1.89086224,3328.6,3328.2,3.00462]
[1722411638358,1.89086224,3328.5,3328.2,3.00462]
[1722411641137,1.89179375,3328.5,3328.2,3.00462]
[1722411642189,1.89179375,3328.5,3328.3,3.00452]
[1722411643932,1.89179375,3328.4,3328.3,3.00452]
[1722411644235,1.89179375,3328.5,3328.3,3.61145182]
[1722411644538,1.89278362,3328.5,3328.3,3.61145182]
[1722411644736,2.20824755,3328.8,3328.3,3.61145182]
[1722411644737,1.89278362,3328.4,3328.3,3.61145182]
[1722411645438,1.89278362,3328.4,3328.3,0.60693182]
[1722411645735,3.00405,3328.9,3328.3,0.60693182]
[1722411645736,2.20824755,3328.5,3328.3,0.60693182]
[1722411645921,2.20824755,3328.5,3328.2,3.00462]
[1722411646154,1.89281639,3328.3,3328.2,3.00462]
[1722411647231,1.89281639,3328.4,3328.3,3.00453]
[1722411647445,1.89281639,3328.4,3328.3,3.605454]
[1722411650469,1.89281639,3328.5,3328.3,3.605454]
[1722411650641,1.89281639,3328.5,3328.3,3.00453]
[1722411651043,1.107,3329.0,3328.3,3.00453]
[1722411651370,1.89251997,3328.5,3328.3,3.00453]
[1722411654481,1.89258861,3328.5,3328.3,3.00453]
[1722411655873,1.89258861,3328.5,3328.2,3.00461]
[1722411656075,1.89258861,3328.4,3328.2,3.00461]
[1722411657812,1.89258674,3328.4,3328.2,3.00461]
[1722411658226,1.89258674,3328.4,3328.3,3.00453]
[1722411658821,1.89258674,3328.4,3328.1,3.00464]
[1722411659124,1.89258674,3328.3,3328.2,3.0046]
[1722411659324,1.89258674,3328.4,3328.2,3.0046]
[1722411661012,1.107,3329.0,3328.2,3.0046]
[1722411661215,1.107,3329.0,3328.0,38.00477]
[1722411661216,1.89269359,3328.4,3328.0,38.00477]
[1722411661450,1.89269359,3328.2,3328.0,35.0]
[1722411661835,1.89269359,3328.2,3327.9,3.66651556]
[1722411662264,1.89269359,3328.2,3328.0,3.00479]
[1722411663205,1.89269359,3328.1,3328.0,3.00479]
[1722411664116,1.89269359,3328.2,3328.0,3.00479]
[1722411664309,1.89269359,3328.2,3327.9,35.0]
[1722411664510,1.89269359,3328.2,3325.5,2.29476756]
[1722411664511,3.0049,3327.9,3327.2,3.00547]
[1722411664717,1.8942055,3327.6,3327.2,3.00547]
[1722411664978,1.8942055,3327.6,3327.4,5.35794]
[1722411665156,1.8942055,3327.7,3327.5,0.65250449]
[1722411665359,1.8942055,3327.7,3327.6,3.00516]
[1722411666226,1.8942055,3327.8,3327.7,3.00507]
[1722411666456,1.8942055,3327.8,3327.7,3.78206145]
[1722411667570,1.107,3328.3,3327.8,3.00498]
[1722411667571,1.8942055,3327.9,3327.8,3.00498]
[1722411667865,1.89359417,3327.9,3327.7,3.00507]
[1722411668066,1.89359417,3327.8,3327.7,3.00507]
[1722411668363,1.89359417,3327.9,3327.7,3.00507]
[1722411668568,2.2091932,3328.2,3327.7,3.00507]
[1722411668569,1.89359417,3327.8,3327.7,3.00507]
[1722411669332,1.89359417,3327.8,3327.7,3.78205045]
[1722411670136,1.89359417,3327.9,3327.7,3.78205045]
[1722411670959,1.89359417,3327.8,3327.7,3.78205045]
[1722411671330,1.89359417,3327.9,3327.8,6.00996]
[1722411671521,1.89359417,3328.1,3328.0,3.0048]
[1722411671715,1.89359417,3328.2,3328.1,3.00471]
[1722411672019,2.2091932,3328.4,3328.1,3.00471]
[1722411672213,2.2091932,3328.4,3328.2,3.00461]
[1722411672428,1.89336156,3328.3,3328.2,3.00461]
[1722411673530,2.2091932,3328.5,3328.1,3.00471]
[1722411674052,2.2091932,3328.5,3328.1,3.83700595]
[1722411674270,1.89358691,3328.2,3328.1,3.83700595]
[1722411674418,3.00417,3328.7,3328.1,3.83700595]
[1722411674617,3.00417,3328.7,3328.1,3.00471]
[1722411674618,1.89359691,3328.2,3328.1,3.00471]
[1722411675819,1.89359691,3328.3,3328.1,3.00471]
[1722411676315,2.2091964,3328.6,3328.2,0.300471]
[1722411676520,2.2091964,3328.5,3328.1,3.00471]
[1722411676759,1.89354861,3328.2,3328.1,3.00471]
[1722411677253,1.89354861,3328.3,3328.1,3.00471]
[1722411677457,1.89354861,3328.2,3328.1,3.00471]
[1722411677662,1.107,3328.7,3328.1,3.80144662]
[1722411677872,1.107,3328.7,3328.1,3.00471]
[1722411677873,1.89357169,3328.2,3328.1,3.00471]
[1722411679029,1.89357169,3328.2,3327.9,3.00483]
[1722411679361,1.89357169,3328.1,3327.6,3.00513]
[1722411679519,1.89357169,3327.9,3327.7,3.0]
[1722411679864,1.89357169,3327.8,3327.6,3.00513]
[1722411680076,1.89357169,3327.8,3327.7,3.0]
[1722411680238,1.89357169,3327.9,3327.7,3.0]
[1722411680637,1.89357169,3328.0,3327.7,6.00507]
[1722411681025,1.89354695,3328.0,3327.7,6.00507]
[1722411681238,1.89356321,3328.0,3327.7,6.906101]
[1722411681729,1.89356321,3328.0,3327.8,3.00497]
[1722411682443,1.89356321,3328.0,3327.9,3.00489]
[1722411682767,3.6022,3328.5,3327.9,3.00489]
[1722411682768,1.89356321,3328.1,3327.9,3.00489]
[1722411682942,1.89356321,3328.1,3328.0,3.0048]
[1722411683574,1.89356321,3328.1,3328.0,3.605777]
[1722411683871,1.107,3328.7,3328.1,3.00471]
[1722411683872,1.89356321,3328.2,3328.1,3.00471]
[1722411684023,1.8933807,3328.2,3328.1,3.00471]
[1722411684526,1.89340006,3328.2,3328.1,3.00471]
[1722411684740,1.89340006,3328.3,3328.1,3.00471]
[1722411684956,1.89340006,3328.2,3328.1,3.00471]
[1722411685533,1.89340006,3328.2,3328.1,3.84839]
[1722411685734,1.89340006,3328.3,3328.2,3.00462]
[1722411687878,1.89345931,3328.3,3328.2,3.00462]
[1722411688951,2.20903586,3328.7,3328.3,3.00453]
[1722411689285,2.20903586,3328.6,3328.3,3.00453]
[1722411689576,2.4105,3328.8,3328.4,3.00444]
[1722411689577,1.89341836,3328.5,3328.4,3.00444]
[1722411690633,2.20903586,3328.8,3328.3,3.304983]
[1722411690841,1.89336487,3328.4,3328.3,3.00453]
[1722411691037,2.2089402,3328.7,3328.4,3.00442]
[1722411691702,2.2089402,3328.8,3328.4,3.00442]
[1722411691990,2.2089402,3328.7,3328.3,3.00453]
[1722411692156,1.89338937,3328.4,3328.3,3.00453]
[1722411693081,2.2089402,3328.7,3328.1,3.00464]
[1722411693284,1.89338794,3328.3,3328.1,3.00464]
[1722411694395,1.107,3328.8,3328.1,3.00464]
[1722411694608,1.8933863,3328.3,3328.2,3.00456]
[1722411695393,1.8933863,3328.4,3328.3,3.00453]
[1722411696921,1.107,3328.8,3328.4,6.00888]
[1722411696922,1.8933863,3328.5,3328.4,6.00888]
[1722411697217,1.8933863,3328.6,3328.5,3.00435]
[1722411697508,1.8933863,3328.7,3328.6,3.00426]
[1722411697712,1.107,3329.1,3328.6,3.00426]
[1722411697925,2.20868452,3328.9,3328.6,3.00426]
[1722411698281,2.20868452,3328.9,3328.4,3.00444]
[1722411698507,1.89313542,3328.5,3328.4,3.00444]
[1722411699223,1.89313542,3328.5,3328.4,6.00888]
[1722411699418,2.20868452,3328.9,3328.5,3.00435]
[1722411699619,1.89303772,3328.6,3328.5,3.00435]
[1722411699787,2.20868452,3328.8,3328.6,3.00426]
[1722411700583,2.20868452,3328.9,3328.4,3.00438]
[1722411700803,1.8929993,3328.5,3328.4,3.00438]
[1722411701219,2.20850024,3328.8,3328.5,3.00435]
[1722411701525,2.20850024,3328.9,3328.5,3.00435]
[1722411703524,1.89282589,3328.6,3328.5,3.00435]
[1722411703882,2.20850024,3328.9,3328.5,3.00435]
[1722411704282,1.89280823,3328.6,3328.5,3.00435]
[1722411704483,1.89277421,3328.6,3328.5,3.00435]
[1722411707344,1.89277421,3328.6,3328.4,3.00443]
[1722411707889,1.89261119,3328.6,3328.4,3.00443]
[1722411708189,1.89261119,3328.6,3328.3,2.2603]
[1722411709041,1.89261119,3328.6,3328.3,5.26476]
[1722411709182,1.89261119,3328.6,3328.4,3.00442]
[1722411709897,3.0039,3329.0,3328.4,3.00442]
[1722411710148,1.89252927,3328.6,3328.4,3.00442]
[1722411711249,1.89248675,3328.6,3328.4,3.00442]
[1722411712836,1.89248675,3328.5,3328.4,3.00442]
[1722411714559,1.89316314,3328.5,3328.4,3.00442]
[1722411715824,1.89316314,3328.6,3328.5,3.00435]
[1722411716030,1.89316314,3328.6,3328.3,5.26476]
[1722411716327,1.89316314,3328.5,3328.4,3.00442]
[1722411716533,1.89316314,3328.6,3328.5,3.00435]
[1722411717015,2.20869033,3328.9,3328.3,5.26476]
[1722411717215,1.89353656,3328.5,3328.3,5.26476]
[1722411717676,1.89353656,3328.5,3328.4,3.00444]
[1722411717877,3.00391,3329.0,3328.4,3.00444]
[1722411718085,1.89377471,3328.5,3328.4,3.00444]
[1722411721389,1.89377203,3328.5,3328.4,3.00444]
[1722411721748,1.89377203,3328.6,3328.4,3.00444]
[1722411721944,1.89377203,3328.6,3328.5,3.00435]
[1722411722278,2.20940071,3328.8,3328.4,3.00444]
[1722411722579,1.89378777,3328.5,3328.4,3.00444]
[1722411722780,1.89378777,3328.5,3328.4,3.83738035]
[1722411724291,1.89378777,3328.5,3328.4,3.00444]
[1722411724780,1.89384708,3328.5,3328.4,3.00444]
[1722411726283,2.20948826,3328.7,3328.4,3.00444]
[1722411726494,5.613868,3329.0,3328.4,3.00444]
[1722411726495,1.89436517,3328.5,3328.4,3.00444]
[1722411726775,2.20948826,3328.8,3328.4,3.00444]
[1722411726978,2.20948826,3328.7,3328.3,2.2603]
[1722411727186,1.89440543,3328.4,3328.3,5.26483]
[1722411727855,1.89463471,3328.4,3328.3,5.26483]
[1722411729780,2.21040717,3328.7,3328.3,5.26483]
[1722411730087,1.89523715,3328.4,3328.3,5.26483]
[1722411730245,2.21040717,3328.7,3328.4,3.00441]
[1722411731142,5.61496347,3329.0,3328.4,3.00441]
[1722411731143,3.00392,3329.0,3328.4,3.00441]
[1722411731487,2.21122166,3328.7,3328.4,3.00441]
[1722411731651,2.21122166,3328.6,3328.4,3.00441]
[1722411732402,2.21122166,3328.6,3328.5,8.53628321]
[1722411732694,1.89524433,3328.9,3328.8,3.00408]
[1722411732859,1.89524433,3329.1,3329.0,3.00384]
[1722411733188,2.21122166,3329.4,3329.0,3.00384]
[1722411733487,1.89508737,3329.2,3329.0,3.06391033]
[1722411733673,1.89508737,3329.2,3329.0,3.00384]
[1722411733983,1.89508737,3329.2,3328.9,0.06007215]
[1722411733984,1.89508737,3329.1,3328.9,35.0]
[1722411734395,1.89508737,3329.1,3328.9,36.86863485]
[1722411734396,1.89418109,3329.1,3328.9,36.86863485]
[1722411735587,1.89418109,3329.2,3329.0,3.0039]
[1722411737696,3.00336,3329.6,3329.0,3.0039]
[1722411737864,1.89260166,3329.2,3329.0,3.06397145]
[1722411738049,1.89260166,3329.2,3329.0,6.05291288]
[1722411738490,1.89260166,3329.3,3329.0,6.05291288]
[1722411739901,1.89260166,3329.3,3329.1,3.00377]
[1722411740068,1.89260166,3329.3,3329.2,0.90566829]
[1722411740607,2.20803527,3329.6,3329.2,0.90566829]
[1722411740896,2.20803527,3329.7,3329.5,3.00344]
[1722411741105,2.20703744,3329.8,3329.5,3.00344]
[1722411741422,5.05586298,3330.1,3329.5,3.00344]
[1722411741423,2.20703744,3330.0,3329.5,3.00344]
[1722411741857,2.20703744,3329.9,3329.5,3.00344]
[1722411742262,2.20703744,3330.0,3329.5,5.24294707]
[1722411744399,2.20553071,3330.0,3329.5,5.24294707]
[1722411744909,7.65724071,3330.1,3329.5,5.24294707]
[1722411745105,7.65724071,3330.1,3329.5,3.00344]
[1722411745259,2.20553071,3330.0,3329.5,3.00344]
[1722411745461,7.65724071,3330.1,3329.5,3.00344]
[1722411745862,7.65724071,3330.1,3329.3,6.06726146]
[1722411746068,7.65724071,3330.1,3329.4,3.00354]
[1722411746267,3.00301,3330.0,3329.4,3.00354]
[1722411746762,4.11001,3330.0,3329.3,0.06007146]
[1722411746998,3.0031,3329.9,3329.3,3.06368146]
[1722411747508,3.0031,3329.9,3329.3,0.06007146]
[1722411749258,3.0031,3329.9,3329.3,3.06368146]
[1722411749490,3.0031,3329.9,3329.3,6.11269434]
[1722411754019,3.0031,3329.9,3329.3,0.06007146]
[1722411754186,3.00321,3329.8,3329.3,0.06007146]
[1722411757315,2.4097,3329.5,3328.9,2.4874]
[1722411757484,3.00381,3329.1,3328.5,6.56492]
[1722411757823,3.0037,3329.3,3328.6,38.00424]
[1722411758486,3.00361,3329.4,3328.6,38.00424]
[1722411758487,3.00372,3329.2,3328.6,38.00424]
[1722411758678,3.00372,3329.2,3328.6,3.93417873]
[1722411758881,3.00361,3329.4,3328.7,3.00416]
[1722411759093,12.09377349,3329.5,3328.6,0.92993873]
[1722411759094,3.00363,3329.3,3328.6,0.92993873]
[1722411759325,3.00363,3329.3,3328.7,3.00417]
[1722411759525,12.89315,3329.5,3328.7,3.00417]
[1722411759694,3.0036,3329.4,3328.7,3.00417]
[1722411760726,3.00364,3329.3,3328.7,3.00417]
[1722411760943,3.00364,3329.3,3328.6,3.93415873]
[1722411761107,1.107,3329.4,3328.7,6.05312288]
[1722411761438,4.11054,3329.4,3328.8,3.00408]
[1722411761638,3.00364,3329.3,3328.6,3.00418]
[1722411761795,3.00364,3329.3,3328.7,3.00416]
[1722411761997,3.00364,3329.3,3328.8,0.300416]
[1722411764146,7.48,3329.5,3328.9,3.4005]
[1722411764351,7.48,3329.5,3329.0,3.00382]
[1722411764634,5.32154,3329.4,3328.8,0.300416]
[1722411764835,5.32154,3329.4,3328.9,3.04901288]
[1722411766132,5.32154,3329.4,3328.8,3.304476]
[1722411767064,5.32154,3329.4,3328.9,0.06007313]
[1722411767271,5.32154,3329.4,3328.8,3.304476]
[1722411769054,5.32154,3329.4,3328.9,35.0]
[1722411770570,3.00363,3329.3,3328.8,0.300416]
[1722411770725,3.00363,3329.3,3328.7,3.00417]
[1722411770928,3.00372,3329.2,3328.5,41.44328]
[1722411771239,3.00372,3329.2,3328.6,3.00426]
[1722411771980,7.52748432,3329.4,3328.7,3.00417]
[1722411772325,5.32161,3329.4,3328.7,3.00417]
[1722411772555,5.32161,3329.4,3328.7,3.06424674]
[1722411773457,5.32161,3329.4,3328.8,3.00407]
[1722411774207,5.32161,3329.4,3328.7,1.88641906]
[1722411774208,3.00364,3329.3,3328.7,4.83051232]
[1722411774499,3.00364,3329.3,3328.7,4.8905891]
[1722411775077,5.21039581,3329.3,3328.7,4.8905891]
[1722411775397,3.00364,3329.3,3328.7,4.8905891]
[1722411775601,3.00364,3329.3,3328.7,4.83051232]
[1722411775804,3.00364,3329.3,3328.7,3.00417]
[1722411776007,3.00364,3329.3,3328.8,35.0]
[1722411776372,3.00377,3329.2,3328.8,35.0]
[1722411778063,3.00383,3329.1,3328.8,35.0]
[1722411778610,2.20752091,3329.2,3328.8,35.0]
[1722411781121,3.00369,3329.3,3328.8,35.0]
[1722411781314,5.21148743,3329.3,3328.8,35.0]
[1722411781506,5.21148743,3329.3,3328.7,3.00417]
[1722411781720,2.20779743,3329.3,3328.5,3.439]
[1722411782040,7.52938743,3329.4,3328.8,3.00407]
[1722411782598,7.52938743,3329.4,3328.6,38.4081668]
[1722411783335,5.21142743,3329.3,3328.6,38.4081668]
[1722411783539,3.00363,3329.3,3328.7,1.43736532]
[1722411783694,3.00363,3329.3,3328.7,4.50161211]
[1722411783894,3.00363,3329.3,3328.7,1.49744211]
[1722411784137,5.21142743,3329.3,3328.7,3.00414]
[1722411784445,5.21142743,3329.3,3328.8,35.0]
[1722411784611,5.21120743,3329.3,3328.8,35.0]
[1722411784934,3.00363,3329.3,3328.8,35.0]
[1722411786232,5.21120743,3329.3,3328.8,35.0]
[1722411787944,5.21124201,3329.3,3328.8,35.0]
[1722411788105,5.21124205,3329.3,3328.8,35.0]
[1722411789414,2.20761205,3329.2,3328.8,35.0]
[1722411790044,5.21124205,3329.3,3328.8,35.0]
[1722411790199,2.20761205,3329.2,3328.8,35.0]
[1722411790537,5.21134205,3329.2,3328.6,3.34815]
[1722411791202,3.00373,3329.2,3328.6,3.34815]
[1722411791405,5.21172104,3329.2,3328.7,2.53426963]
[1722411792559,3.00373,3329.2,3328.7,2.53426963]
[1722411792762,5.21189804,3329.2,3328.7,2.53426963]
[1722411793048,2.20816804,3329.2,3328.7,5.59850641]
[1722411793411,2.20816804,3329.3,3328.7,5.59850641]
[1722411793756,7.52972804,3329.4,3328.8,0.59424064]
[1722411794630,7.52997294,3329.4,3328.8,0.59424064]
[1722411795551,2.20841294,3329.3,3328.8,0.59424064]
[1722411795754,2.20841294,3329.3,3328.9,3.04901288]
[1722411797449,2.20841294,3329.2,3328.9,3.04901288]
[1722411797649,5.21204294,3329.3,3328.8,0.59424064]
[1722411797884,3.00363,3329.3,3328.8,0.59424064]
[1722411798045,5.21286362,3329.3,3328.9,35.0]
[1722411798247,2.20923362,3329.2,3328.9,35.0]
[1722411798584,2.20923362,3329.2,3328.8,0.59424064]
[1722411798891,2.20923362,3329.2,3328.7,3.00411]
[1722411799036,2.20923362,3329.2,3328.7,38.00411]
[1722411799563,2.20923362,3329.2,3328.8,3.00408]
[1722411801500,2.21055002,3329.1,3328.8,3.00408]
[1722411802280,2.21055002,3329.1,3328.7,35.0]
[1722411802465,2.21055002,3329.1,3328.7,37.92955503]
[1722411802649,2.21055002,3329.0,3328.7,35.0]
[1722411802843,2.21055002,3329.0,3328.5,5.33633]
[1722411803384,2.21055002,3329.0,3328.6,35.0]
[1722411803537,2.21055002,3329.0,3328.5,5.33633]
[1722411803739,2.21055002,3329.0,3328.5,6.281112]
[1722411804205,2.21055002,3329.0,3328.6,3.00424]
[1722411804408,2.21055002,3329.0,3328.5,41.281112]
[1722411804409,3.00364,3329.3,3328.7,3.00412]
[1722411804613,2.21136485,3329.1,3328.7,3.06419729]
[1722411804918,2.21132987,3329.1,3328.7,3.06419729]
[1722411805072,2.21132987,3329.0,3328.8,0.30641973]
[1722411805271,2.21132987,3329.0,3328.7,3.06419729]
[1722411806097,2.21132987,3329.1,3328.7,3.06419729]
[1722411806579,2.21132987,3329.0,3328.8,3.00407]
[1722411806788,2.21132987,3329.1,3328.8,3.00407]
[1722411806975,2.21132987,3329.1,3328.9,0.30641473]
[1722411808138,2.21137511,3329.1,3328.9,0.30641473]
[1722411808443,2.21137512,3329.1,3328.9,0.30641473]
[1722411808601,2.21137512,3329.1,3328.6,4.11121]
[1722411808798,2.21137512,3329.0,3328.6,3.00421]
[1722411810745,2.21137512,3328.9,3328.6,3.00421]
[1722411811042,2.21137512,3329.0,3328.6,3.00421]
[1722411811246,2.21137512,3329.0,3328.6,6.05322288]
[1722411811430,3.00378,3329.2,3328.6,6.05322288]
[1722411811664,2.21165146,3329.0,3328.6,6.05322288]
[1722411812315,2.21165146,3329.0,3328.7,0.06007733]
[1722411812513,2.21165146,3329.0,3328.7,2.30288617]
[1722411812717,2.21165146,3329.0,3328.7,5.30704617]
[1722411814258,2.21165146,3329.1,3328.8,3.00407]
[1722411814437,2.21165146,3329.0,3328.8,3.00407]
[1722411814829,3.00363,3329.3,3328.8,3.00407]
[1722411815139,2.21161515,3329.0,3328.9,0.53069562]
[1722411815440,2.21161515,3329.0,3328.8,3.00407]
[1722411818145,3.00363,3329.3,3328.8,3.00407]
[1722411818445,2.21171719,3329.1,3328.8,3.06414559]
[1722411818651,2.21171719,3329.0,3328.8,4.25078673]
[1722411818821,2.21171719,3329.0,3328.9,35.0]
[1722411819723,2.21171719,3329.1,3328.9,35.0]
[1722411821016,2.21171719,3329.1,3328.9,38.00399]
[1722411821353,2.21171719,3329.1,3328.9,41.05300288]
[1722411821515,4.93044838,3329.4,3328.9,41.05300288]
[1722411821715,2.21159652,3329.1,3328.9,41.05300288]
[1722411822657,2.21159652,3329.1,3328.9,38.04901288]
[1722411822995,2.21159652,3329.0,3328.9,35.0]
[1722411824905,1.107,3329.1,3328.3,2.4699]
[1722411825105,2.2118317,3328.7,3328.2,3.00456]
[1722411825392,4.11105,3328.9,3328.2,3.00456]
[1722411825393,2.2118317,3328.5,3328.3,35.0]
[1722411826058,2.2118317,3328.5,3328.2,3.605021]
[1722411826253,2.2118317,3328.6,3328.2,3.605021]
[1722411827095,5.2163517,3328.4,3327.4,3.00531]
[1722411827299,5.2164317,3328.3,3327.6,5.3975]
[1722411827472,5.2164317,3328.3,3327.7,38.00506]
[1722411827473,2.2118317,3328.2,3327.7,38.00506]
[1722411827677,2.2118317,3328.2,3327.7,41.05407288]
[1722411828270,5.21473444,3328.3,3327.7,41.05407288]
[1722411829278,2.21013444,3328.3,3327.7,41.05407288]
[1722411829489,2.21013444,3328.4,3327.7,41.05407288]
[1722411829713,2.21013444,3328.4,3327.8,3.04901288]
[1722411830000,2.21013444,3328.4,3327.9,3.00483]
[1722411831374,7.58573444,3328.5,3327.9,3.00483]
[1722411831683,5.3756,3328.5,3327.9,3.00483]
[1722411832417,2.20720716,3328.6,3328.2,3.00462]
[1722411832713,7.48,3328.7,3328.2,3.00462]
[1722411832714,2.20720716,3328.7,3328.2,3.00462]
[1722411833500,5.21138716,3328.7,3328.1,2.4562]
[1722411833772,5.21138716,3328.7,3328.1,5.46091]
[1722411834397,5.21138716,3328.7,3328.1,3.00471]
[1722411834800,3.00418,3328.7,3328.1,3.00471]
[1722411835118,5.21062984,3328.7,3328.1,3.00471]
[1722411835803,6.31762984,3328.7,3328.1,3.00471]
[1722411837584,4.11118,3328.7,3328.1,3.00471]
[1722411838319,4.53074984,3328.8,3328.3,3.0045]
[1722411838320,4.53017359,3328.8,3328.3,3.0045]
[1722411838523,2.20587359,3328.9,3328.4,3.00436]
[1722411838685,14.97707359,3329.0,3328.4,3.00436]
[1722411838885,12.7712,3329.0,3328.4,3.00436]
[1722411839317,12.7712,3329.0,3328.2,35.0]
[1722411839502,12.7712,3329.0,3328.2,40.11620684]
[1722411839503,3.00405,3328.9,3328.2,40.11620684]
[1722411839919,4.11105,3328.9,3328.2,40.11620684]
[1722411840318,3.00405,3328.9,3328.2,40.11620684]
[1722411840513,3.00405,3328.9,3328.2,5.11620684]
[1722411840713,9.7673,3329.0,3328.3,2.5573872]
[1722411840916,9.7673,3329.0,3328.5,3.00433]
[1722411841114,11.97317359,3329.0,3328.5,3.00433]
[1722411841502,9.7673,3329.0,3328.5,3.00433]
[1722411842303,9.7673,3329.0,3328.6,3.00426]
[1722411842502,9.7673,3329.0,3328.5,0.85661672]
[1722411842503,7.48,3329.0,3328.7,3.00417]
[1722411843641,4.57543812,3329.2,3328.7,3.00417]
[1722411844938,4.57554796,3329.2,3328.7,3.00417]
[1722411845296,4.57554796,3329.2,3328.8,3.00408]
[1722411845496,2.3697,3329.2,3328.8,3.00408]
[1722411846934,1.107,3329.3,3328.8,3.00408]
[1722411847442,2.20584796,3329.2,3328.7,3.00417]
[1722411848135,4.11065,3329.3,3328.7,3.00417]
[1722411848340,6.31656855,3329.3,3328.7,3.00417]
[1722411848506,6.31656855,3329.3,3328.7,6.05318288]
[1722411848915,6.31656855,3329.3,3328.8,3.00408]
[1722411849433,4.11065,3329.3,3328.8,3.00408]
[1722411849635,1.107,3329.3,3328.8,3.00408]
[1722411849842,1.107,3329.3,3328.9,3.00399]
[1722411853240,4.11071,3329.3,3328.7,3.00411]
[1722411853444,5.20963855,3329.2,3328.7,3.00411]
[1722411853630,6.38321641,3329.2,3328.5,3.00427]
[1722411853833,6.38321641,3329.2,3328.4,5.36961]
[1722411854039,2.3772,3329.1,3328.4,5.36961]
[1722411854234,6.48802,3329.1,3328.4,3.00441]
[1722411854419,6.48802,3329.1,3328.5,3.00435]
[1722411854638,6.48802,3329.1,3328.4,3.00443]
[1722411854639,3.0039,3329.0,3328.4,3.00443]
[1722411855044,1.107,3328.7,3328.1,3.00471]
[1722411855224,3.00427,3328.6,3328.0,3.0048]
[1722411855729,3.3131991,3328.7,3328.1,3.00471]
[1722411856060,6.3173691,3328.7,3328.1,3.00471]
[1722411856353,4.11117,3328.7,3328.1,3.00471]
[1722411856766,6.3173691,3328.7,3328.1,3.00471]
[1722411857660,4.11117,3328.7,3328.1,3.00471]
[1722411858960,3.00427,3328.6,3328.0,35.0]
[1722411859274,3.00427,3328.6,3328.0,3.00478]
[1722411859725,3.00438,3328.5,3327.9,3.00486]
[1722411859927,4.11138,3328.5,3327.9,3.00486]
[1722411862260,2.3418,3328.4,3327.9,3.00486]
[1722411862440,2.3418,3328.4,3327.8,35.0]
[1722411862612,2.3418,3328.4,3327.9,0.50575823]
[1722411864054,2.3418,3328.4,3327.9,3.51064823]
[1722411864370,5.34624,3328.4,3327.9,0.50575823]
[1722411864582,1.107,3328.0,3327.6,3.0]
[1722411864728,3.00463,3328.2,3326.6,1.107]
[1722411864729,1.107,3327.8,3326.6,1.107]
[1722411865077,1.107,3327.6,3326.9,3.00573]
[1722411865572,1.107,3327.8,3327.2,3.00545]
[1722411865927,1.107,3327.8,3327.3,35.0]
[1722411866772,1.107,3327.8,3327.3,36.78739597]
[1722411867146,1.107,3327.8,3327.3,39.79282597]
[1722411867751,5.2826,3327.9,3327.3,39.79282597]
[1722411868291,2.2777,3327.9,3327.4,3.00534]
[1722411868579,5.2826,3327.9,3327.3,36.78739597]
[1722411868795,5.2826,3327.9,3327.3,39.79282597]
[1722411871929,2.2777,3327.9,3327.5,3.00525]
[1722411872483,2.2777,3327.9,3327.6,38.00516]
[1722411872706,7.48,3328.0,3327.6,36.08198456]
[1722411872913,7.48,3328.0,3327.8,3.00498]
[1722411873926,7.48,3328.0,3327.6,39.08708456]
[1722411874818,7.48,3328.0,3327.6,4.08708456]
[1722411875183,7.48,3328.0,3327.9,3.00489]
[1722411875430,7.48,3328.0,3327.9,41.856216]
[1722411875618,3.4017,3328.9,3327.9,35.846436]
[1722411875793,2.2947,3328.9,3328.3,1.107]
[1722411876020,2.2947,3328.9,3328.4,3.00439]
[1722411877701,7.48,3329.0,3328.6,3.00425]
[1722411877910,2.412,3329.2,3328.7,3.00417]
[1722411878221,1.107,3329.3,3328.7,3.00417]
[1722411878527,1.107,3329.3,3328.8,3.00408]
[1722411881307,10.48356,3329.4,3328.8,3.00408]
[1722411882332,3.00356,3329.4,3328.8,3.00408]
[1722411883432,6.48165,3329.5,3328.9,3.00398]
[1722411888148,3.00354,3329.4,3328.8,3.00402]
[1722411890686,3.00363,3329.3,3328.8,3.00402]
[1722411890870,4.11063,3329.3,3328.8,3.00402]
[1722411891170,3.00374,3329.2,3328.7,2.373]
[1722411891325,3.00374,3329.2,3328.6,3.00425]
[1722411891526,3.00381,3329.1,3328.5,5.35389]
[1722411891822,3.00381,3329.1,3328.5,40.35389]
[1722411892025,3.00381,3329.1,3328.5,43.40290288]
[1722411892272,4.1107,3329.3,3328.6,3.00424]
[1722411893342,3.00374,3329.2,3328.6,3.00424]
[1722411896446,4.11064,3329.3,3328.7,3.00416]
[1722411896653,4.11064,3329.3,3328.8,0.60084]
[1722411897273,4.11064,3329.3,3328.8,3.60491]
[1722411897770,4.11064,3329.3,3328.8,0.60084]
[1722411900536,15.03670578,3329.7,3328.9,2.3033]